[Event "*** Titled Tuesday Blitz"]
[Site "Chess.com"]
[Date "2020.04.28"]
[Round "3"]
[White "OparinGrigoriy"]
[Black "EvgenyRomanov"]
[Result "1-0"]
[WhiteElo "2914"]
[BlackElo "2644"]
[TimeControl "180+1"]
[EndTime "10:30:12 PDT"]
[Termination "OparinGrigoriy won on time"]

1. Nf3 {[%clk 0:03:00.9]} 1... Nf6 {[%clk 0:02:57.9]} 2. g3 {[%clk 0:03:01.8]}
2... b6 {[%clk 0:02:56.9]} 3. Bg2 {[%clk 0:03:02.7]} 3... Bb7 {[%clk 0:02:57.4]}
4. d3 {[%clk 0:02:48.3]} 4... g6 {[%clk 0:02:56.7]} 5. O-O {[%clk 0:02:47.9]}
5... Bg7 {[%clk 0:02:56.7]} 6. e4 {[%clk 0:02:48.5]} 6... d6 {[%clk 0:02:55.7]}
7. c4 {[%clk 0:02:47.2]} 7... O-O {[%clk 0:02:54.9]} 8. Nc3 {[%clk 0:02:44.9]}
8... c5 {[%clk 0:02:54.1]} 9. Re1 {[%clk 0:02:44.5]} 9... Nc6 {[%clk 0:02:53.3]}
10. Rb1 {[%clk 0:02:33.5]} 10... Nd7 {[%clk 0:02:52]} 11. Bd2 {[%clk 0:02:23.6]}
11... Nde5 {[%clk 0:02:47.9]} 12. Nxe5 {[%clk 0:02:21.8]} 12... Nxe5 {[%clk
0:02:47.3]} 13. Be3 {[%clk 0:02:19.4]} 13... Nc6 {[%clk 0:02:47.1]} 14. Ne2
{[%clk 0:02:18.5]} 14... Rc8 {[%clk 0:02:44.2]} 15. Qd2 {[%clk 0:02:18.8]} 15...
e6 {[%clk 0:02:42.7]} 16. a3 {[%clk 0:02:17.4]} 16... a5 {[%clk 0:02:34.2]} 17.
h4 {[%clk 0:02:12.5]} 17... Qd7 {[%clk 0:02:25]} 18. h5 {[%clk 0:02:12.6]} 18...
Ne5 {[%clk 0:02:06.7]} 19. b4 {[%clk 0:02:09.2]} 19... axb4 {[%clk 0:02:05.4]}
20. axb4 {[%clk 0:02:10.1]} 20... Ng4 {[%clk 0:02:04.2]} 21. Bf4 {[%clk
0:01:59.9]} 21... e5 {[%clk 0:01:59.5]} 22. Be3 {[%clk 0:01:58.1]} 22... Nxe3
{[%clk 0:01:56.3]} 23. Qxe3 {[%clk 0:01:59]} 23... Bc6 {[%clk 0:01:47.6]} 24.
bxc5 {[%clk 0:01:55.7]} 24... bxc5 {[%clk 0:01:46.8]} 25. Kh2 {[%clk 0:01:52.8]}
25... f5 {[%clk 0:01:36.6]} 26. f4 {[%clk 0:01:47.7]} 26... fxe4 {[%clk
0:01:32.1]} 27. Bxe4 {[%clk 0:01:46.3]} 27... exf4 {[%clk 0:01:10.4]} 28. Nxf4
{[%clk 0:01:44.8]} 28... Bd4 {[%clk 0:01:04]} 29. Qf3 {[%clk 0:01:42.9]} 29...
g5 {[%clk 0:00:55.1]} 30. Bxc6 {[%clk 0:01:42.1]} 30... Rxc6 {[%clk 0:00:54.5]}
31. Qd5+ {[%clk 0:01:42.6]} 31... Kh8 {[%clk 0:00:52.3]} 32. Qxg5 {[%clk
0:01:42.7]} 32... Rc7 {[%clk 0:00:43.2]} 33. Ne6 {[%clk 0:01:30.1]} 33... Rf2+
{[%clk 0:00:39.9]} 34. Kh1 {[%clk 0:01:30.5]} 34... Rc8 {[%clk 0:00:31.4]} 35.
Re4 {[%clk 0:01:20.4]} 35... Rcf8 {[%clk 0:00:27.6]} 36. Qg4 {[%clk 0:01:12.2]}
36... Qf7 {[%clk 0:00:22.8]} 37. Rf4 {[%clk 0:00:59.1]} 37... Rxf4 {[%clk
0:00:20.9]} 38. Nxf4 {[%clk 0:01:00]} 38... Rg8 {[%clk 0:00:20.8]} 39. Qe6
{[%clk 0:00:56.2]} 39... Qxe6 {[%clk 0:00:13.3]} 40. Nxe6 {[%clk 0:00:57.1]}
40... Rxg3 {[%clk 0:00:13.7]} 41. Rb8+ {[%clk 0:00:19.1]} 41... Rg8 {[%clk
0:00:13.7]} 42. Rxg8+ {[%clk 0:00:18.5]} 42... Kxg8 {[%clk 0:00:14.6]} 43. Nxd4
{[%clk 0:00:19.2]} 43... cxd4 {[%clk 0:00:14.8]} 44. Kg2 {[%clk 0:00:20.1]}
44... Kg7 {[%clk 0:00:14.9]} 45. Kf3 {[%clk 0:00:20.8]} 45... Kh6 {[%clk
0:00:11.7]} 46. Ke4 {[%clk 0:00:21.4]} 46... Kxh5 {[%clk 0:00:11.8]} 47. Kd5
{[%clk 0:00:22.1]} 47... Kg5 {[%clk 0:00:08.8]} 48. Kxd6 {[%clk 0:00:22.1]}
48... h5 {[%clk 0:00:09.5]} 49. c5 {[%clk 0:00:22.8]} 49... h4 {[%clk
0:00:09.8]} 50. c6 {[%clk 0:00:23.4]} 50... h3 {[%clk 0:00:10.2]} 51. c7 {[%clk
0:00:24]} 51... h2 {[%clk 0:00:10.6]} 52. c8=Q {[%clk 0:00:24.6]} 52... h1=Q
{[%clk 0:00:10.5]} 53. Qg8+ {[%clk 0:00:24]} 53... Kf4 {[%clk 0:00:10.5]} 54.
Qd5 {[%clk 0:00:15.7]} 54... Qh6+ {[%clk 0:00:07.4]} 55. Kc5 {[%clk 0:00:15.9]}
55... Qf8+ {[%clk 0:00:06.3]} 56. Kxd4 {[%clk 0:00:15.3]} 56... Qg7+ {[%clk
0:00:06.7]} 57. Kc4 {[%clk 0:00:15]} 57... Qc7+ {[%clk 0:00:06.7]} 58. Qc5
{[%clk 0:00:15.5]} 58... Qf7+ {[%clk 0:00:06.9]} 59. Kc3 {[%clk 0:00:15.6]}
59... Kf3 {[%clk 0:00:04.3]} 60. d4 {[%clk 0:00:14.8]} 1-0

[Event "*** Titled Tuesday Blitz"]
[Site "Chess.com"]
[Date "2020.04.28"]
[Round "3"]
[White "mbachez"]
[Black "KNVB"]
[Result "0-1"]
[WhiteElo "2493"]
[BlackElo "2726"]
[TimeControl "180+1"]
[EndTime "10:30:12 PDT"]
[Termination "KNVB won by resignation"]

1. e4 {[%clk 0:03:00.9]} 1... c5 {[%clk 0:02:59.9]} 2. Nf3 {[%clk 0:03:00.7]}
2... e6 {[%clk 0:02:59.8]} 3. g3 {[%clk 0:02:59.8]} 3... Nc6 {[%clk 0:02:51]} 4.
Bg2 {[%clk 0:02:59.5]} 4... Qc7 {[%clk 0:02:50.1]} 5. O-O {[%clk 0:02:58.4]}
5... Nf6 {[%clk 0:02:45.5]} 6. Qe2 {[%clk 0:02:55.1]} 6... d6 {[%clk 0:02:38.3]}
7. c3 {[%clk 0:02:53]} 7... e5 {[%clk 0:02:35.5]} 8. Na3 {[%clk 0:02:52.4]} 8...
Be7 {[%clk 0:02:32.5]} 9. Nc4 {[%clk 0:02:50.7]} 9... O-O {[%clk 0:02:29.2]} 10.
a4 {[%clk 0:02:50.1]} 10... h6 {[%clk 0:02:26.6]} 11. d3 {[%clk 0:02:49.4]}
11... Be6 {[%clk 0:02:25.6]} 12. Nh4 {[%clk 0:02:47.9]} 12... Rfe8 {[%clk
0:02:19.9]} 13. Ne3 {[%clk 0:02:45.9]} 13... Bf8 {[%clk 0:02:17.4]} 14. f4
{[%clk 0:02:45.3]} 14... exf4 {[%clk 0:01:26.1]} 15. gxf4 {[%clk 0:02:44.6]}
15... Rad8 {[%clk 0:01:26.7]} 16. Qf2 {[%clk 0:02:35.8]} 16... d5 {[%clk
0:00:55.5]} 17. e5 {[%clk 0:02:34.7]} 17... Ng4 {[%clk 0:00:46.9]} 18. Nxg4
{[%clk 0:01:52.1]} 18... Bxg4 {[%clk 0:00:47.8]} 19. Bd2 {[%clk 0:01:42.5]}
19... d4 {[%clk 0:00:24.5]} 20. c4 {[%clk 0:01:38.5]} 20... Ne7 {[%clk
0:00:24.7]} 21. Qg3 {[%clk 0:01:22.7]} 21... Bf5 {[%clk 0:00:21.5]} 22. Kh1
{[%clk 0:01:10.1]} 22... Qd7 {[%clk 0:00:19.1]} 23. Rg1 {[%clk 0:01:08.8]} 23...
g6 {[%clk 0:00:16.9]} 24. Rae1 {[%clk 0:01:07.6]} 24... Be6 {[%clk 0:00:16.4]}
25. b3 {[%clk 0:01:06.7]} 25... Kh7 {[%clk 0:00:14.5]} 26. Be4 {[%clk
0:01:05.9]} 26... Nf5 {[%clk 0:00:14.1]} 27. Nxf5 {[%clk 0:00:34.9]} 27... Bxf5
{[%clk 0:00:15]} 28. Re2 {[%clk 0:00:20.1]} 28... Be7 {[%clk 0:00:12.8]} 29.
Reg2 {[%clk 0:00:19.3]} 29... Rg8 {[%clk 0:00:12.6]} 30. Qf3 {[%clk 0:00:19.3]}
30... b6 {[%clk 0:00:12.4]} 31. Be1 {[%clk 0:00:19.3]} 31... a5 {[%clk
0:00:11.7]} 32. h4 {[%clk 0:00:19.5]} 32... h5 {[%clk 0:00:09.2]} 33. Rg5 {[%clk
0:00:19.3]} 33... Bxg5 {[%clk 0:00:09.5]} 34. Rxg5 {[%clk 0:00:19.3]} 34... Bxe4
{[%clk 0:00:07]} 35. Qxe4 {[%clk 0:00:19.4]} 35... Qh3+ {[%clk 0:00:06.7]} 36.
Kg1 {[%clk 0:00:19.8]} 36... Rg7 {[%clk 0:00:04.3]} 37. Rxh5+ {[%clk 0:00:19.4]}
37... Kg8 {[%clk 0:00:05]} 38. Rg5 {[%clk 0:00:19.8]} 38... Re8 {[%clk
0:00:05.3]} 39. Rg3 {[%clk 0:00:18.3]} 39... Qxh4 {[%clk 0:00:04.7]} 40. Rg2
{[%clk 0:00:17.9]} 40... Qh5 {[%clk 0:00:03.8]} 41. Rh2 {[%clk 0:00:18.1]} 41...
Qf5 {[%clk 0:00:04]} 42. Qh1 {[%clk 0:00:17.5]} 42... Qg4+ {[%clk 0:00:04.1]}
43. Kf1 {[%clk 0:00:16.5]} 43... Qxf4+ {[%clk 0:00:03.8]} 44. Bf2 {[%clk
0:00:16.8]} 44... Kf8 {[%clk 0:00:04.2]} 45. Rh8+ {[%clk 0:00:16]} 45... Ke7
{[%clk 0:00:04]} 46. Rh4 {[%clk 0:00:14.5]} 46... Qc1+ {[%clk 0:00:03.8]} 47.
Be1 {[%clk 0:00:14.7]} 47... Qe3 {[%clk 0:00:03.1]} 48. Qb7+ {[%clk 0:00:14.1]}
48... Kf8 {[%clk 0:00:03.3]} 49. Rh8+ {[%clk 0:00:13.4]} 49... Rg8 {[%clk
0:00:03.8]} 50. Rxg8+ {[%clk 0:00:12.3]} 50... Kxg8 {[%clk 0:00:04.7]} 51. Bh4
{[%clk 0:00:11.2]} 51... Qxd3+ {[%clk 0:00:04.2]} 52. Kf2 {[%clk 0:00:10.8]}
52... Qf5+ {[%clk 0:00:04.3]} 53. Kg2 {[%clk 0:00:10.1]} 53... Qxe5 {[%clk
0:00:04.1]} 54. Bg3 {[%clk 0:00:09.9]} 54... Qe4+ {[%clk 0:00:04.6]} 55. Qxe4
{[%clk 0:00:09.4]} 55... Rxe4 {[%clk 0:00:05.5]} 56. Kf3 {[%clk 0:00:10.3]}
56... Re3+ {[%clk 0:00:05.9]} 57. Kf4 {[%clk 0:00:10.6]} 57... Rxg3 {[%clk
0:00:06.8]} 58. Kxg3 {[%clk 0:00:10.5]} 58... f5 {[%clk 0:00:07.2]} 59. Kf3
{[%clk 0:00:11.4]} 59... Kf7 {[%clk 0:00:08.1]} 0-1

[Event "*** Titled Tuesday Blitz"]
[Site "Chess.com"]
[Date "2020.04.28"]
[Round "3"]
[White "Ali_rastbod"]
[Black "KubaGepard"]
[Result "0-1"]
[WhiteElo "2581"]
[BlackElo "2429"]
[TimeControl "180+1"]
[EndTime "10:30:12 PDT"]
[Termination "KubaGepard won by resignation"]

1. Nf3 {[%clk 0:03:00.9]} 1... d5 {[%clk 0:03:00]} 2. c4 {[%clk 0:03:01.2]} 2...
dxc4 {[%clk 0:03:00.9]} 3. Na3 {[%clk 0:02:59.9]} 3... a6 {[%clk 0:03:00.2]} 4.
Nxc4 {[%clk 0:02:57.8]} 4... b5 {[%clk 0:03:00.1]} 5. Nce5 {[%clk 0:02:58.4]}
5... f6 {[%clk 0:03:00.1]} 6. Qb3 {[%clk 0:02:14.7]} 6... fxe5 {[%clk
0:02:55.7]} 7. Nxe5 {[%clk 0:02:15.6]} 7... e6 {[%clk 0:02:51.3]} 8. Qf3 {[%clk
0:02:14.4]} 8... Qd6 {[%clk 0:02:06]} 9. Qxa8 {[%clk 0:01:32.3]} 9... c6 {[%clk
0:02:04.3]} 10. Nxc6 {[%clk 0:01:23.3]} 10... Qxc6 {[%clk 0:02:03.9]} 11. Qxb8
{[%clk 0:01:22]} 11... Bd6 {[%clk 0:02:02.5]} 12. Qa7 {[%clk 0:01:21.7]} 12...
Ne7 {[%clk 0:01:50.7]} 13. Qe3 {[%clk 0:01:11.1]} 13... Nd5 {[%clk 0:01:48.5]}
14. Qe4 {[%clk 0:01:00.4]} 14... O-O {[%clk 0:01:37.3]} 15. g3 {[%clk
0:00:41.9]} 15... Bc5 {[%clk 0:01:15.9]} 16. f4 {[%clk 0:00:31]} 16... Qb6
{[%clk 0:01:03.1]} 17. e3 {[%clk 0:00:24.6]} 17... Nxf4 {[%clk 0:00:53.3]} 18.
gxf4 {[%clk 0:00:19.4]} 18... Bb7 {[%clk 0:00:51.7]} 19. Qc2 {[%clk 0:00:15.1]}
19... Bxh1 {[%clk 0:00:49.6]} 20. b4 {[%clk 0:00:15.7]} 20... Bxb4 {[%clk
0:00:35.9]} 21. Bd3 {[%clk 0:00:16.3]} 21... Qxe3+ {[%clk 0:00:31.5]} 22. Be2
{[%clk 0:00:11.7]} 22... Qg1+ {[%clk 0:00:17.3]} 23. Bf1 {[%clk 0:00:11.3]}
23... Rxf4 {[%clk 0:00:14.8]} 24. Qc8+ {[%clk 0:00:09.7]} 24... Rf8 {[%clk
0:00:14.8]} 25. Qxe6+ {[%clk 0:00:09.9]} 25... Kh8 {[%clk 0:00:14.7]} 26. Qe2
{[%clk 0:00:10.1]} 26... Rf2 {[%clk 0:00:11.6]} 27. Qxf2 {[%clk 0:00:06.3]}
27... Qg5 {[%clk 0:00:07.6]} 28. Bb2 {[%clk 0:00:05.2]} 28... Bd5 {[%clk
0:00:06.3]} 29. Bd3 {[%clk 0:00:02.8]} 29... Qe7+ {[%clk 0:00:05.7]} 30. Qe3
{[%clk 0:00:02.9]} 30... Qh4+ {[%clk 0:00:06.1]} 31. Kd1 {[%clk 0:00:02.6]}
31... Qh5+ {[%clk 0:00:05.2]} 32. Kc2 {[%clk 0:00:01.9]} 32... Qf7 {[%clk
0:00:05]} 33. Qd4 {[%clk 0:00:02.3]} 33... Bd6 {[%clk 0:00:04.2]} 34. Qxg7+
{[%clk 0:00:01.8]} 34... Qxg7 {[%clk 0:00:05.1]} 35. Bxg7+ {[%clk 0:00:02.4]}
35... Kxg7 {[%clk 0:00:06]} 36. Rg1+ {[%clk 0:00:02.7]} 36... Kf6 {[%clk
0:00:06.6]} 37. Re1 {[%clk 0:00:03.6]} 37... Be5 {[%clk 0:00:05.7]} 38. Be4
{[%clk 0:00:03.9]} 38... Bxa2 {[%clk 0:00:05.7]} 39. Bxh7 {[%clk 0:00:03.9]}
39... Bc4 {[%clk 0:00:06]} 40. Bd3 {[%clk 0:00:04]} 40... Bd5 {[%clk 0:00:05.7]}
41. Rf1+ {[%clk 0:00:04.5]} 41... Ke7 {[%clk 0:00:05.1]} 42. h4 {[%clk
0:00:05.4]} 42... Kd6 {[%clk 0:00:05.7]} 43. Bf5 {[%clk 0:00:05.4]} 43... a5
{[%clk 0:00:05.2]} 44. h5 {[%clk 0:00:05.9]} 44... a4 {[%clk 0:00:05.5]} 45. h6
{[%clk 0:00:06.5]} 45... Bb3+ {[%clk 0:00:05.7]} 46. Kd3 {[%clk 0:00:05.1]}
46... Bc4+ {[%clk 0:00:05.3]} 47. Ke3 {[%clk 0:00:05.7]} 47... Bxf1 {[%clk
0:00:06.2]} 48. d4 {[%clk 0:00:06.6]} 48... Bf6 {[%clk 0:00:04.9]} 49. Bb1
{[%clk 0:00:06.3]} 49... Bc4 {[%clk 0:00:05.4]} 50. h7 {[%clk 0:00:06.6]} 50...
a3 {[%clk 0:00:05.6]} 51. d5 {[%clk 0:00:07.5]} 51... Kxd5 {[%clk 0:00:05.2]}
52. h8=Q {[%clk 0:00:06.1]} 52... Bxh8 {[%clk 0:00:03.8]} 0-1

[Event "*** Titled Tuesday Blitz"]
[Site "Chess.com"]
[Date "2020.04.28"]
[Round "3"]
[White "Chessmasterzt"]
[Black "NotFischer"]
[Result "1-0"]
[WhiteElo "2491"]
[BlackElo "2148"]
[TimeControl "180+1"]
[EndTime "10:30:14 PDT"]
[Termination "Chessmasterzt won on time"]

1. Nf3 {[%clk 0:03:00.9]} 1... Nf6 {[%clk 0:02:59.2]} 2. c4 {[%clk 0:03:01.8]}
2... d6 {[%clk 0:02:57.5]} 3. d4 {[%clk 0:02:59.5]} 3... c6 {[%clk 0:02:57.8]}
4. Nc3 {[%clk 0:02:57.9]} 4... Bg4 {[%clk 0:02:58]} 5. g3 {[%clk 0:02:55.8]}
5... Nbd7 {[%clk 0:02:58.1]} 6. Bg2 {[%clk 0:02:54.7]} 6... e5 {[%clk
0:02:57.9]} 7. O-O {[%clk 0:02:50.8]} 7... Be7 {[%clk 0:02:58.6]} 8. h3 {[%clk
0:02:43.6]} 8... Bxf3 {[%clk 0:02:58.4]} 9. Bxf3 {[%clk 0:02:36]} 9... O-O
{[%clk 0:02:59.3]} 10. Bg2 {[%clk 0:02:23.3]} 10... Qc7 {[%clk 0:02:59.1]} 11.
b3 {[%clk 0:02:22.2]} 11... Rfe8 {[%clk 0:02:58.6]} 12. Bb2 {[%clk 0:02:22.5]}
12... Rad8 {[%clk 0:02:58.3]} 13. Rc1 {[%clk 0:02:21.2]} 13... Qb8 {[%clk
0:02:56.4]} 14. Qd2 {[%clk 0:02:18.4]} 14... h6 {[%clk 0:02:46.7]} 15. Rfd1
{[%clk 0:02:17.2]} 15... Bf8 {[%clk 0:02:46.9]} 16. d5 {[%clk 0:02:10.6]} 16...
c5 {[%clk 0:02:40]} 17. a3 {[%clk 0:02:10.9]} 17... a6 {[%clk 0:02:40]} 18. b4
{[%clk 0:02:08.5]} 18... b5 {[%clk 0:02:29.6]} 19. cxb5 {[%clk 0:02:01.9]} 19...
axb5 {[%clk 0:02:29.2]} 20. e4 {[%clk 0:01:54.7]} 20... Qb6 {[%clk 0:02:19.8]}
21. Bf1 {[%clk 0:01:48.7]} 21... c4 {[%clk 0:02:18.7]} 22. Ra1 {[%clk
0:01:43.7]} 22... Ra8 {[%clk 0:02:17.7]} 23. Re1 {[%clk 0:01:38.6]} 23... Kh7
{[%clk 0:02:11.8]} 24. Qe3 {[%clk 0:01:38.4]} 24... Qb7 {[%clk 0:02:03.1]} 25.
Ra2 {[%clk 0:01:35.6]} 25... Be7 {[%clk 0:02:02.9]} 26. Rea1 {[%clk 0:01:35.1]}
26... Bd8 {[%clk 0:02:03.2]} 27. Qe1 {[%clk 0:01:30.9]} 27... Bb6 {[%clk
0:01:57.4]} 28. Nxb5 {[%clk 0:01:21.8]} 28... Bxf2+ {[%clk 0:01:56.9]} 29. Kxf2
{[%clk 0:01:20.5]} 29... Qxb5 {[%clk 0:01:57.8]} 30. Bc3 {[%clk 0:01:15.1]}
30... Nb6 {[%clk 0:01:46.3]} 31. Kg2 {[%clk 0:01:10.9]} 31... Na4 {[%clk
0:01:42.3]} 32. Bd2 {[%clk 0:01:09.8]} 32... Rec8 {[%clk 0:01:35.9]} 33. Rc2
{[%clk 0:01:10.1]} 33... Qb6 {[%clk 0:01:28.4]} 34. Be3 {[%clk 0:01:06.8]} 34...
Qa6 {[%clk 0:01:24.4]} 35. Rac1 {[%clk 0:00:56]} 35... Nb6 {[%clk 0:01:11.8]}
36. Qf2 {[%clk 0:00:45.6]} 36... Nxe4 {[%clk 0:00:37.9]} 37. Qf5+ {[%clk
0:00:43.8]} 37... Kg8 {[%clk 0:00:34.8]} 38. Qxe4 {[%clk 0:00:43.5]} 38... Qb7
{[%clk 0:00:22.9]} 39. Bxb6 {[%clk 0:00:30]} 39... Qxb6 {[%clk 0:00:23.8]} 40.
Rxc4 {[%clk 0:00:29.4]} 40... Rxc4 {[%clk 0:00:17]} 41. Rxc4 {[%clk 0:00:29.5]}
41... g6 {[%clk 0:00:16.9]} 42. Qf3 {[%clk 0:00:20.7]} 42... Qa7 {[%clk
0:00:11.6]} 43. Rc6 {[%clk 0:00:18.9]} 43... e4 {[%clk 0:00:05.5]} 44. Qxe4
{[%clk 0:00:12.1]} 44... Qxa3 {[%clk 0:00:05.5]} 45. Rxd6 {[%clk 0:00:11.3]}
45... Qb2+ {[%clk 0:00:05.2]} 46. Be2 {[%clk 0:00:11.1]} 46... Ra2 {[%clk
0:00:04.6]} 47. Rd8+ {[%clk 0:00:08.9]} 47... Kg7 {[%clk 0:00:04.6]} 48. Kf2
{[%clk 0:00:07.5]} 48... Ra3 {[%clk 0:00:02]} 49. Re8 {[%clk 0:00:06.5]} 49...
Qf6+ {[%clk 0:00:01.3]} 50. Qf4 {[%clk 0:00:06.5]} 50... Qb6+ {[%clk 0:00:01.2]}
51. Kg2 {[%clk 0:00:06.3]} 51... Ra2 {[%clk 0:00:01.8]} 52. Qe5+ {[%clk
0:00:06]} 1-0

[Event "*** Titled Tuesday Blitz"]
[Site "Chess.com"]
[Date "2020.04.28"]
[Round "3"]
[White "kingofkolkata"]
[Black "ALeks_Ivlev"]
[Result "0-1"]
[WhiteElo "2244"]
[BlackElo "2575"]
[TimeControl "180+1"]
[EndTime "10:30:15 PDT"]
[Termination "ALeks_Ivlev won by checkmate"]

1. d4 {[%clk 0:03:00.9]} 1... Nf6 {[%clk 0:02:58.6]} 2. c4 {[%clk 0:03:01.3]}
2... e6 {[%clk 0:02:59.1]} 3. g3 {[%clk 0:03:01.1]} 3... c5 {[%clk 0:02:52.8]}
4. d5 {[%clk 0:03:00.9]} 4... exd5 {[%clk 0:02:53]} 5. cxd5 {[%clk 0:03:01.8]}
5... d6 {[%clk 0:02:53.3]} 6. Nf3 {[%clk 0:03:00.9]} 6... g6 {[%clk 0:02:53.6]}
7. Nc3 {[%clk 0:03:00.9]} 7... Bg7 {[%clk 0:02:54]} 8. Bg2 {[%clk 0:03:01.5]}
8... O-O {[%clk 0:02:54.5]} 9. O-O {[%clk 0:03:02]} 9... Nbd7 {[%clk 0:02:52.9]}
10. Bf4 {[%clk 0:02:57.3]} 10... Qe7 {[%clk 0:02:50.9]} 11. Nb5 {[%clk
0:02:52.2]} 11... Ne8 {[%clk 0:02:49.4]} 12. Nc3 {[%clk 0:02:45.6]} 12... Ne5
{[%clk 0:02:47.5]} 13. Nd2 {[%clk 0:02:39.8]} 13... g5 {[%clk 0:02:44.2]} 14.
Bxe5 {[%clk 0:02:39.6]} 14... Bxe5 {[%clk 0:02:43.6]} 15. Nc4 {[%clk 0:02:39.9]}
15... Bg7 {[%clk 0:02:34.3]} 16. a4 {[%clk 0:02:39.6]} 16... f5 {[%clk
0:02:33.3]} 17. e4 {[%clk 0:02:35.7]} 17... f4 {[%clk 0:02:27.8]} 18. Re1 {[%clk
0:02:35.5]} 18... Bd4 {[%clk 0:02:22.6]} 19. g4 {[%clk 0:02:27.3]} 19... Nf6
{[%clk 0:02:04.9]} 20. h3 {[%clk 0:02:26.1]} 20... h5 {[%clk 0:02:03.9]} 21. Bf3
{[%clk 0:02:20.1]} 21... hxg4 {[%clk 0:02:01.9]} 22. hxg4 {[%clk 0:02:18.2]}
22... Qh7 {[%clk 0:02:01]} 23. Kg2 {[%clk 0:02:15.5]} 23... Qh4 {[%clk
0:01:57.1]} 24. Qe2 {[%clk 0:02:02.3]} 24... Nxg4 {[%clk 0:01:54]} 25. Rh1
{[%clk 0:02:01.1]} 25... Qxf2+ {[%clk 0:01:53]} 26. Qxf2 {[%clk 0:02:00.8]}
26... Nxf2 {[%clk 0:01:53.9]} 27. e5 {[%clk 0:01:38.2]} 27... g4 {[%clk
0:01:43.6]} 28. Be4 {[%clk 0:01:29.8]} 28... f3+ {[%clk 0:01:42.2]} 29. Kg3
{[%clk 0:01:25.4]} 29... Nxh1+ {[%clk 0:01:23.5]} 30. Rxh1 {[%clk 0:01:24.6]}
30... dxe5 {[%clk 0:01:17.1]} 31. d6 {[%clk 0:00:53.6]} 31... Be6 {[%clk
0:01:12.5]} 32. Nd5 {[%clk 0:00:42.7]} 32... Rf4 {[%clk 0:01:07.9]} 33. Ne7+
{[%clk 0:00:31.2]} 33... Kf7 {[%clk 0:01:02.6]} 34. Rh7+ {[%clk 0:00:30.2]}
34... Kf6 {[%clk 0:01:02.3]} 35. Rh6+ {[%clk 0:00:25.5]} 35... Kg5 {[%clk
0:01:01.9]} 36. Rg6+ {[%clk 0:00:23.8]} 36... Kh5 {[%clk 0:01:02.1]} 37. Rxe6
{[%clk 0:00:20.9]} 37... Rxe4 {[%clk 0:00:59.3]} 38. Nd2 {[%clk 0:00:11.3]}
38... Rf4 {[%clk 0:00:54.2]} 39. Ng6 {[%clk 0:00:07.9]} 39... Be3 {[%clk
0:00:37.9]} 40. Nf1 {[%clk 0:00:06.3]} 40... Bc1 {[%clk 0:00:32.7]} 41. Nxe5
{[%clk 0:00:06.4]} 41... Re4 {[%clk 0:00:27.7]} 42. d7 {[%clk 0:00:03.9]} 42...
Bf4+ {[%clk 0:00:26.7]} 43. Kf2 {[%clk 0:00:02.5]} 43... Re2+ {[%clk 0:00:26.9]}
44. Kg1 {[%clk 0:00:02.3]} 44... Rxe5 {[%clk 0:00:26.7]} 45. Rf6 {[%clk
0:00:01.2]} 45... Kg5 {[%clk 0:00:21.9]} 46. Rf7 {[%clk 0:00:02.1]} 46... Rh8
{[%clk 0:00:20]} 47. d8=Q+ {[%clk 0:00:02.3]} 47... Rxd8 {[%clk 0:00:19.6]} 48.
Rg7+ {[%clk 0:00:03.2]} 48... Kf6 {[%clk 0:00:20.1]} 49. Rxg4 {[%clk 0:00:03.4]}
49... Rg5 {[%clk 0:00:20.4]} 50. Kf2 {[%clk 0:00:02.9]} 50... Rxg4 {[%clk
0:00:20.6]} 51. Nh2 {[%clk 0:00:03.3]} 51... Bxh2 {[%clk 0:00:20.6]} 52. Kxf3
{[%clk 0:00:04.2]} 52... Rxa4 {[%clk 0:00:21.2]} 53. b3 {[%clk 0:00:03.9]} 53...
Rb4 {[%clk 0:00:21.3]} 54. Kg2 {[%clk 0:00:03.7]} 54... Rxb3 {[%clk 0:00:21.2]}
55. Kxh2 {[%clk 0:00:04.6]} 55... a5 {[%clk 0:00:21.6]} 56. Kg1 {[%clk
0:00:05.5]} 56... a4 {[%clk 0:00:22.5]} 57. Kf2 {[%clk 0:00:06.4]} 57... a3
{[%clk 0:00:23.4]} 58. Ke1 {[%clk 0:00:07.3]} 58... a2 {[%clk 0:00:24.3]} 59.
Ke2 {[%clk 0:00:08.2]} 59... a1=Q {[%clk 0:00:25.2]} 60. Kf2 {[%clk 0:00:07.9]}
60... Rd2# {[%clk 0:00:25.2]} 0-1